[Event "Titled Tuesday Blitz July 18 Late 2023"]
[White "Rustemov, Alexander"]
[Black "Liu, Casper"]
[WhiteFideId "4119002"]
[BlackFideId "1454153"]
[WhiteElo "2882"]
[BlackElo "2464"]
[Result "1/2-1/2"]
[Round "1"]
[TimeControl "180+2"]
[Date "2023.07.18"]
[WhiteClock "0:01:37"]
[BlackClock "0:01:37"]
[Board "34"]

1. d4 {[%clk 0:03:00]}  Nf6 {[%clk 0:02:59]} 2. c4 {[%clk 0:03:01]}  g6 {[%clk 0:03:00]} 3. Nf3 {[%clk 0:03:02]}  Bg7 {[%clk 0:03:00]} 4. g3 {[%clk 0:03:02]}  O-O {[%clk 0:03:01]} 5. Bg2 {[%clk 0:03:03]}  d6 {[%clk 0:03:01]} 6. Nc3 {[%clk 0:03:03]}  c6 {[%clk 0:03:01]} 7. O-O {[%clk 0:03:04]}  Qa5 {[%clk 0:03:02]} 8. h3 {[%clk 0:03:03]}  Qa6 {[%clk 0:02:58]} 9. Nd2 {[%clk 0:03:00]}  Be6 {[%clk 0:02:56]} 10. b3 {[%clk 0:02:59]}  c5 {[%clk 0:02:54]} 11. d5 {[%clk 0:02:55]}  Nxd5 {[%clk 0:02:49]} 12. cxd5 {[%clk 0:02:42]}  Bxc3 {[%clk 0:02:48]} 13. dxe6 {[%clk 0:02:37]}  Bxa1 {[%clk 0:02:48]} 14. exf7+ {[%clk 0:02:37]}  Kxf7 {[%clk 0:02:44]} 15. Nf3 {[%clk 0:02:31]}  Kg7 {[%clk 0:02:21]} 16. Ng5 {[%clk 0:02:27]}  Rf6 {[%clk 0:02:02]} 17. Be3 {[%clk 0:02:25]}  Be5 {[%clk 0:01:58]} 18. f4 {[%clk 0:02:22]}  Bd4 {[%clk 0:01:53]} 19. Bxd4 {[%clk 0:02:20]}  cxd4 {[%clk 0:01:54]} 20. Qxd4 {[%clk 0:02:20]}  Qb6 {[%clk 0:01:54]} 21. Ne6+ {[%clk 0:01:47]}  Kf7 {[%clk 0:01:36]} 22. Ng5+ {[%clk 0:01:45]}  Kg7 {[%clk 0:01:36]} 23. Ne6+ {[%clk 0:01:45]}  Kf7 {[%clk 0:01:37]} 24. Ng5+ {[%clk 0:01:37]}  Kg7 {[%clk 0:01:37]} 1/2-1/2


[Site "https://www.chess.com"]

[Event "Titled Tuesday Blitz July 18 Late 2023"]
[White "Tang, Andrew"]
[Black "Zeman, Matyas"]
[WhiteFideId "2059630"]
[BlackFideId "364398"]
[WhiteElo "2878"]
[BlackElo "2463"]
[Result "1-0"]
[Round "1"]
[TimeControl "180+2"]
[Date "2023.07.18"]
[WhiteClock "0:02:04"]
[BlackClock "0:01:04"]
[Board "36"]

1. d4 {[%clk 0:03:00]}  Nf6 {[%clk 0:02:59]} 2. c4 {[%clk 0:02:59]}  e6 {[%clk 0:02:59]} 3. Nc3 {[%clk 0:02:57]}  d5 {[%clk 0:02:57]} 4. cxd5 {[%clk 0:02:57]}  exd5 {[%clk 0:02:54]} 5. Bg5 {[%clk 0:02:57]}  c6 {[%clk 0:02:52]} 6. e3 {[%clk 0:02:55]}  Bf5 {[%clk 0:02:52]} 7. Qf3 {[%clk 0:02:54]}  Bg6 {[%clk 0:02:53]} 8. Bxf6 {[%clk 0:02:54]}  Qxf6 {[%clk 0:02:54]} 9. Qxf6 {[%clk 0:02:54]}  gxf6 {[%clk 0:02:55]} 10. h4 {[%clk 0:02:55]}  h5 {[%clk 0:02:54]} 11. Kd2 {[%clk 0:02:55]}  Nd7 {[%clk 0:02:53]} 12. Nge2 {[%clk 0:02:55]}  Nb6 {[%clk 0:02:53]} 13. Nf4 {[%clk 0:02:56]}  Bh6 {[%clk 0:02:51]} 14. g3 {[%clk 0:02:52]}  Nc8 {[%clk 0:02:50]} 15. Bd3 {[%clk 0:02:51]}  Rg8 {[%clk 0:02:42]} 16. b4 {[%clk 0:02:46]}  Nd6 {[%clk 0:02:34]} 17. Nxg6 {[%clk 0:02:46]}  fxg6 {[%clk 0:02:34]} 18. b5 {[%clk 0:02:47]}  f5 {[%clk 0:01:52]} 19. Rab1 {[%clk 0:02:33]}  Kd7 {[%clk 0:01:32]} 20. bxc6+ {[%clk 0:02:22]}  bxc6 {[%clk 0:01:33]} 21. Na4 {[%clk 0:02:23]}  Rab8 {[%clk 0:01:13]} 22. Nc5+ {[%clk 0:02:19]}  Ke7 {[%clk 0:01:13]} 23. Na6 {[%clk 0:02:20]}  Rb6 {[%clk 0:01:12]} 24. Rhc1 {[%clk 0:02:11]}  Rgb8 {[%clk 0:01:04]} 25. Nxb8 {[%clk 0:02:04]} 1-0


[Site "https://www.chess.com"]

[Event "Titled Tuesday Blitz July 18 Late 2023"]
[White "Karas, Marek"]
[Black "Rasulov, Vugar"]
[WhiteFideId "14928558"]
[BlackFideId "13402390"]
[WhiteElo "2459"]
[BlackElo "2864"]
[Result "0-1"]
[Round "1"]
[TimeControl "180+2"]
[Date "2023.07.18"]
[WhiteClock "0:00:42"]
[BlackClock "0:02:16"]
[Board "39"]

1. d4 {[%clk 0:03:00]}  d5 {[%clk 0:02:59]} 2. Nf3 {[%clk 0:03:01]}  Nf6 {[%clk 0:02:59]} 3. c4 {[%clk 0:03:00]}  e6 {[%clk 0:02:59]} 4. Nc3 {[%clk 0:03:00]}  Bb4 {[%clk 0:02:58]} 5. Qa4+ {[%clk 0:02:59]}  Nc6 {[%clk 0:02:58]} 6. e3 {[%clk 0:02:59]}  O-O {[%clk 0:02:57]} 7. Bd2 {[%clk 0:02:58]}  Re8 {[%clk 0:02:55]} 8. Qc2 {[%clk 0:02:56]}  Bf8 {[%clk 0:02:55]} 9. cxd5 {[%clk 0:02:54]}  exd5 {[%clk 0:02:54]} 10. Bd3 {[%clk 0:02:53]}  Nb4 {[%clk 0:02:53]} 11. Qb1 {[%clk 0:02:52]}  Nxd3+ {[%clk 0:02:54]} 12. Qxd3 {[%clk 0:02:53]}  Ne4 {[%clk 0:02:54]} 13. O-O {[%clk 0:02:45]}  c6 {[%clk 0:02:54]} 14. Qe2 {[%clk 0:02:35]}  Bg4 {[%clk 0:02:52]} 15. h3 {[%clk 0:02:27]}  Bxf3 {[%clk 0:02:48]} 16. gxf3 {[%clk 0:02:27]}  Qg5+ {[%clk 0:02:46]} 17. Kh1 {[%clk 0:02:25]}  Nxd2 {[%clk 0:02:46]} 18. Qxd2 {[%clk 0:02:22]}  Qf5 {[%clk 0:02:47]} 19. Kg2 {[%clk 0:02:13]}  Re6 {[%clk 0:02:46]} 20. e4 {[%clk 0:02:02]}  Rg6+ {[%clk 0:02:39]} 21. Kh2 {[%clk 0:02:01]}  Qxf3 {[%clk 0:02:38]} 22. Rg1 {[%clk 0:02:01]}  dxe4 {[%clk 0:02:36]} 23. Rxg6 {[%clk 0:01:50]}  hxg6 {[%clk 0:02:36]} 24. Qe3 {[%clk 0:01:48]}  Qxe3 {[%clk 0:02:32]} 25. fxe3 {[%clk 0:01:47]}  f5 {[%clk 0:02:33]} 26. Rb1 {[%clk 0:01:39]}  a5 {[%clk 0:02:26]} 27. Kg2 {[%clk 0:01:28]}  Kf7 {[%clk 0:02:25]} 28. Rf1 {[%clk 0:01:26]}  Ke6 {[%clk 0:02:26]} 29. Kf2 {[%clk 0:01:22]}  g5 {[%clk 0:02:21]} 30. Ke2 {[%clk 0:01:16]}  Be7 {[%clk 0:02:20]} 31. Rd1 {[%clk 0:01:10]}  Rh8 {[%clk 0:02:18]} 32. d5+ {[%clk 0:01:04]}  cxd5 {[%clk 0:02:19]} 33. Rxd5 {[%clk 0:00:56]}  Bb4 {[%clk 0:02:17]} 34. Rb5 {[%clk 0:00:54]}  Bxc3 {[%clk 0:02:13]} 35. bxc3 {[%clk 0:00:54]}  Rxh3 {[%clk 0:02:13]} 36. Rb6+ {[%clk 0:00:47]}  Ke5 {[%clk 0:02:13]} 37. Rb5+ {[%clk 0:00:47]}  Kf6 {[%clk 0:02:14]} 38. Rb6+ {[%clk 0:00:46]}  Kf7 {[%clk 0:02:14]} 39. Rxb7+ {[%clk 0:00:47]}  Kg6 {[%clk 0:02:15]} 40. Rb6+ {[%clk 0:00:46]}  Kh5 {[%clk 0:02:15]} 41. Rb5 {[%clk 0:00:46]}  Rh2+ {[%clk 0:02:15]} 42. Kf1 {[%clk 0:00:42]}  Kg4 {[%clk 0:02:16]} 0-1


[Site "https://www.chess.com"]

[Event "Titled Tuesday Blitz July 18 Late 2023"]
[White "Moskalenko, Alexander"]
[Black "Garcia Almaguer, Juan Manuel"]
[WhiteFideId "4155351"]
[BlackFideId "5110491"]
[WhiteElo "2862"]
[BlackElo "2456"]
[Result "1-0"]
[Round "1"]
[TimeControl "180+2"]
[Date "2023.07.18"]
[WhiteClock "0:01:16"]
[BlackClock "0:00:31"]
[Board "40"]

1. e4 {[%clk 0:02:56]}  e5 {[%clk 0:02:59]} 2. Nf3 {[%clk 0:02:56]}  Nc6 {[%clk 0:03:00]} 3. Bb5 {[%clk 0:02:55]}  a6 {[%clk 0:02:59]} 4. Ba4 {[%clk 0:02:56]}  Nf6 {[%clk 0:02:59]} 5. d3 {[%clk 0:02:56]}  Bc5 {[%clk 0:02:55]} 6. O-O {[%clk 0:02:56]}  b5 {[%clk 0:02:54]} 7. Bb3 {[%clk 0:02:56]}  O-O {[%clk 0:02:54]} 8. c3 {[%clk 0:02:55]}  h6 {[%clk 0:02:48]} 9. Nbd2 {[%clk 0:02:50]}  Bb6 {[%clk 0:02:39]} 10. Re1 {[%clk 0:02:47]}  Re8 {[%clk 0:02:37]} 11. Nf1 {[%clk 0:02:47]}  d5 {[%clk 0:02:37]} 12. exd5 {[%clk 0:02:42]}  Nxd5 {[%clk 0:02:38]} 13. Ng3 {[%clk 0:02:41]}  Bg4 {[%clk 0:02:34]} 14. h3 {[%clk 0:02:38]}  Be6 {[%clk 0:02:23]} 15. Bc2 {[%clk 0:02:21]}  Qd6 {[%clk 0:02:02]} 16. d4 {[%clk 0:01:51]}  exd4 {[%clk 0:02:00]} 17. Qd3 {[%clk 0:01:40]}  g6 {[%clk 0:01:45]} 18. Bxh6 {[%clk 0:01:37]}  dxc3 {[%clk 0:01:40]} 19. bxc3 {[%clk 0:01:38]}  Qxg3 {[%clk 0:01:37]} 20. Kh1 {[%clk 0:01:37]}  Qd6 {[%clk 0:01:26]} 21. Nh4 {[%clk 0:01:24]}  Nde7 {[%clk 0:00:57]} 22. Qf3 {[%clk 0:01:18]}  Ne5 {[%clk 0:00:31]} 23. Qf6 {[%clk 0:01:16]} 1-0


[Site "https://www.chess.com"]

[Event "Titled Tuesday Blitz July 18 Late 2023"]
[White "Mujumdar, Sameer"]
[Black "Bartel, Mateusz"]
[WhiteFideId "2029707"]
[BlackFideId "1112635"]
[WhiteElo "2449"]
[BlackElo "2844"]
[Result "0-1"]
[Round "1"]
[TimeControl "180+2"]
[Date "2023.07.18"]
[WhiteClock "0:00:11"]
[BlackClock "0:00:11"]
[Board "41"]

1. d4 {[%clk 0:03:00]}  g6 {[%clk 0:02:59]} 2. Nf3 {[%clk 0:02:59]}  Bg7 {[%clk 0:02:59]} 3. c3 {[%clk 0:02:58]}  d6 {[%clk 0:02:57]} 4. Bg5 {[%clk 0:02:56]}  h6 {[%clk 0:02:55]} 5. Bh4 {[%clk 0:02:55]}  g5 {[%clk 0:02:53]} 6. Bg3 {[%clk 0:02:55]}  f5 {[%clk 0:02:53]} 7. e3 {[%clk 0:02:55]}  Nf6 {[%clk 0:02:52]} 8. Bd3 {[%clk 0:02:52]}  e6 {[%clk 0:02:51]} 9. h4 {[%clk 0:02:48]}  g4 {[%clk 0:02:50]} 10. Nfd2 {[%clk 0:02:47]}  Nh5 {[%clk 0:02:45]} 11. Qe2 {[%clk 0:02:40]}  Nxg3 {[%clk 0:02:43]} 12. fxg3 {[%clk 0:02:39]}  d5 {[%clk 0:02:44]} 13. c4 {[%clk 0:02:37]}  c6 {[%clk 0:02:41]} 14. Nc3 {[%clk 0:02:37]}  Nd7 {[%clk 0:02:32]} 15. Qf2 {[%clk 0:02:35]}  Nf6 {[%clk 0:02:30]} 16. Ne2 {[%clk 0:02:36]}  Ne4 {[%clk 0:01:57]} 17. Bxe4 {[%clk 0:02:32]}  dxe4 {[%clk 0:01:56]} 18. O-O {[%clk 0:02:30]}  O-O {[%clk 0:01:51]} 19. Nf4 {[%clk 0:02:16]}  Kh7 {[%clk 0:01:49]} 20. Rad1 {[%clk 0:02:06]}  b6 {[%clk 0:01:40]} 21. b3 {[%clk 0:01:47]}  Qe8 {[%clk 0:01:36]} 22. Nb1 {[%clk 0:01:40]}  Ba6 {[%clk 0:01:21]} 23. Qc2 {[%clk 0:01:35]}  Rd8 {[%clk 0:01:15]} 24. Nc3 {[%clk 0:01:31]}  e5 {[%clk 0:01:12]} 25. dxe5 {[%clk 0:01:27]}  Qxe5 {[%clk 0:01:12]} 26. Nce2 {[%clk 0:01:25]}  c5 {[%clk 0:01:00]} 27. Rd5 {[%clk 0:01:21]}  Rxd5 {[%clk 0:00:57]} 28. Nxd5 {[%clk 0:01:22]}  b5 {[%clk 0:00:46]} 29. Nef4 {[%clk 0:01:10]}  Bb7 {[%clk 0:00:45]} 30. h5 {[%clk 0:01:05]}  Rf7 {[%clk 0:00:39]} 31. Ng6 {[%clk 0:00:59]}  Qxg3 {[%clk 0:00:34]} 32. Ndf4 {[%clk 0:00:55]}  Qxe3+ {[%clk 0:00:34]} 33. Kh1 {[%clk 0:00:53]}  Qc3 {[%clk 0:00:27]} 34. Qd1 {[%clk 0:00:50]}  Qd4 {[%clk 0:00:25]} 35. Qe2 {[%clk 0:00:48]}  bxc4 {[%clk 0:00:25]} 36. Rd1 {[%clk 0:00:46]}  Qb2 {[%clk 0:00:25]} 37. Qxc4 {[%clk 0:00:46]}  Qf6 {[%clk 0:00:22]} 38. Rd6 {[%clk 0:00:35]}  Qxd6 {[%clk 0:00:14]} 39. Qxf7 {[%clk 0:00:36]}  g3 {[%clk 0:00:14]} 40. Nf8+ {[%clk 0:00:19]}  Qxf8 {[%clk 0:00:14]} 41. Qg6+ {[%clk 0:00:19]}  Kh8 {[%clk 0:00:13]} 42. Qxg3 {[%clk 0:00:16]}  Qf6 {[%clk 0:00:12]} 43. Ng6+ {[%clk 0:00:15]}  Kh7 {[%clk 0:00:13]} 44. Qc7 {[%clk 0:00:15]}  Bd5 {[%clk 0:00:12]} 45. Qxa7 {[%clk 0:00:11]}  e3 {[%clk 0:00:11]} 0-1


[Site "https://www.chess.com"]

[Event "Titled Tuesday Blitz July 18 Late 2023"]
[White "Gadimbayli, Abdulla"]
[Black "Castella Garcia, Fausto"]
[WhiteFideId "13404938"]
[BlackFideId "3501922"]
[WhiteElo "2836"]
[BlackElo "2446"]
[Result "1-0"]
[Round "1"]
[TimeControl "180+2"]
[Date "2023.07.18"]
[WhiteClock "0:01:02"]
[BlackClock "0:00:16"]
[Board "42"]

1. e4 {[%clk 0:02:59]}  c5 {[%clk 0:01:18]} 2. Nf3 {[%clk 0:02:58]}  d6 {[%clk 0:01:17]} 3. d4 {[%clk 0:02:55]}  cxd4 {[%clk 0:01:18]} 4. Nxd4 {[%clk 0:02:55]}  Nf6 {[%clk 0:01:17]} 5. Nc3 {[%clk 0:02:56]}  g6 {[%clk 0:01:18]} 6. Be3 {[%clk 0:02:48]}  Bg7 {[%clk 0:01:17]} 7. f3 {[%clk 0:02:48]}  O-O {[%clk 0:01:17]} 8. Qd2 {[%clk 0:02:49]}  Nc6 {[%clk 0:01:17]} 9. O-O-O {[%clk 0:02:49]}  d5 {[%clk 0:01:17]} 10. exd5 {[%clk 0:02:50]}  Nxd5 {[%clk 0:01:17]} 11. Nxc6 {[%clk 0:02:51]}  bxc6 {[%clk 0:01:18]} 12. Bd4 {[%clk 0:02:51]}  Bxd4 {[%clk 0:01:19]} 13. Qxd4 {[%clk 0:02:52]}  Qb6 {[%clk 0:01:19]} 14. Na4 {[%clk 0:02:51]}  Qa5 {[%clk 0:01:20]} 15. b3 {[%clk 0:02:48]}  Bf5 {[%clk 0:01:20]} 16. Qc5 {[%clk 0:02:44]}  Qxc5 {[%clk 0:01:13]} 17. Nxc5 {[%clk 0:02:44]}  Rad8 {[%clk 0:01:11]} 18. Bd3 {[%clk 0:02:29]}  Nc3 {[%clk 0:01:10]} 19. Rde1 {[%clk 0:02:24]}  Bxd3 {[%clk 0:01:03]} 20. Nxd3 {[%clk 0:02:25]}  e6 {[%clk 0:01:02]} 21. Kb2 {[%clk 0:02:24]}  Nb5 {[%clk 0:01:01]} 22. Re4 {[%clk 0:02:23]}  Nd4 {[%clk 0:00:57]} 23. Rd1 {[%clk 0:02:23]}  Nf5 {[%clk 0:00:57]} 24. Rde1 {[%clk 0:02:21]}  Kg7 {[%clk 0:00:55]} 25. Rc4 {[%clk 0:02:22]}  Rd6 {[%clk 0:00:54]} 26. a4 {[%clk 0:02:20]}  Rfd8 {[%clk 0:00:55]} 27. Re5 {[%clk 0:02:19]}  Nd4 {[%clk 0:00:55]} 28. Ra5 {[%clk 0:02:17]}  Nxc2 {[%clk 0:00:54]} 29. Rxc2 {[%clk 0:02:05]}  Rxd3 {[%clk 0:00:55]} 30. Rxa7 {[%clk 0:02:06]}  Rb8 {[%clk 0:00:51]} 31. Rc3 {[%clk 0:02:06]}  Rd2+ {[%clk 0:00:49]} 32. Rc2 {[%clk 0:02:06]}  Rd3 {[%clk 0:00:49]} 33. Rc3 {[%clk 0:02:06]}  Rd2+ {[%clk 0:00:49]} 34. Ka3 {[%clk 0:02:07]}  Rxg2 {[%clk 0:00:49]} 35. Rxc6 {[%clk 0:02:07]}  Rxh2 {[%clk 0:00:46]} 36. Rcc7 {[%clk 0:02:07]}  Rf8 {[%clk 0:00:41]} 37. a5 {[%clk 0:02:07]}  Rf2 {[%clk 0:00:39]} 38. a6 {[%clk 0:02:02]}  Rxf3 {[%clk 0:00:39]} 39. Rab7 {[%clk 0:02:02]}  h5 {[%clk 0:00:39]} 40. a7 {[%clk 0:02:03]}  Rf1 {[%clk 0:00:36]} 41. Ka2 {[%clk 0:01:44]}  Rf2+ {[%clk 0:00:36]} 42. Ka3 {[%clk 0:01:44]}  Rf1 {[%clk 0:00:36]} 43. b4 {[%clk 0:01:14]}  h4 {[%clk 0:00:34]} 44. b5 {[%clk 0:01:14]}  h3 {[%clk 0:00:34]} 45. Rc2 {[%clk 0:01:14]}  Ra1+ {[%clk 0:00:25]} 46. Kb4 {[%clk 0:01:07]}  Rh8 {[%clk 0:00:21]} 47. Rf2 {[%clk 0:01:04]}  h2 {[%clk 0:00:22]} 48. Rbxf7+ {[%clk 0:01:01]}  Kg8 {[%clk 0:00:21]} 49. Rf8+ {[%clk 0:01:01]}  Kg7 {[%clk 0:00:16]} 50. R2f7+ {[%clk 0:01:02]} 1-0


[Site "https://www.chess.com"]

[Event "Titled Tuesday Blitz July 18 Late 2023"]
[White "Gaal, Zsoka"]
[Black "Ozen, Bahadir"]
[WhiteFideId "777765"]
[BlackFideId "6337058"]
[WhiteElo "2445"]
[BlackElo "2831"]
[Result "0-1"]
[Round "1"]
[TimeControl "180+2"]
[Date "2023.07.18"]
[WhiteClock "0:00:02"]
[BlackClock "0:00:55"]
[Board "43"]

1. Nf3 {[%clk 0:03:00]}  g6 {[%clk 0:02:58]} 2. g3 {[%clk 0:03:00]}  Bg7 {[%clk 0:02:58]} 3. d4 {[%clk 0:02:59]}  Nf6 {[%clk 0:02:58]} 4. Bg2 {[%clk 0:02:58]}  O-O {[%clk 0:02:58]} 5. b3 {[%clk 0:02:59]}  b5 {[%clk 0:02:46]} 6. Ne5 {[%clk 0:02:50]}  c6 {[%clk 0:02:46]} 7. O-O {[%clk 0:02:48]}  Bb7 {[%clk 0:02:42]} 8. c4 {[%clk 0:02:43]}  d6 {[%clk 0:02:42]} 9. Nd3 {[%clk 0:02:34]}  bxc4 {[%clk 0:02:38]} 10. bxc4 {[%clk 0:02:34]}  Nbd7 {[%clk 0:02:39]} 11. Nc3 {[%clk 0:02:28]}  Qc7 {[%clk 0:02:38]} 12. Rb1 {[%clk 0:02:28]}  Rab8 {[%clk 0:02:38]} 13. e4 {[%clk 0:02:14]}  e5 {[%clk 0:02:32]} 14. dxe5 {[%clk 0:02:04]}  dxe5 {[%clk 0:02:32]} 15. Be3 {[%clk 0:02:01]}  Ba8 {[%clk 0:02:27]} 16. Qa4 {[%clk 0:01:58]}  Nb6 {[%clk 0:02:27]} 17. Qa5 {[%clk 0:01:50]}  Rfd8 {[%clk 0:02:27]} 18. Nc5 {[%clk 0:01:38]}  Qe7 {[%clk 0:02:10]} 19. Rb4 {[%clk 0:01:27]}  Ng4 {[%clk 0:02:08]} 20. Bc1 {[%clk 0:01:08]}  Bf8 {[%clk 0:02:02]} 21. Na6 {[%clk 0:01:05]}  Rbc8 {[%clk 0:01:59]} 22. h3 {[%clk 0:01:05]}  Nf6 {[%clk 0:01:53]} 23. Be3 {[%clk 0:01:05]}  Nfd7 {[%clk 0:01:50]} 24. c5 {[%clk 0:01:02]}  Bb7 {[%clk 0:01:47]} 25. Rfb1 {[%clk 0:00:26]}  Bxa6 {[%clk 0:01:46]} 26. cxb6 {[%clk 0:00:26]}  Bd3 {[%clk 0:01:45]} 27. bxa7 {[%clk 0:00:26]}  Bxb1 {[%clk 0:01:43]} 28. Rxb1 {[%clk 0:00:27]}  Nc5 {[%clk 0:01:35]} 29. Na4 {[%clk 0:00:20]}  Nxa4 {[%clk 0:01:22]} 30. Qxa4 {[%clk 0:00:21]}  c5 {[%clk 0:01:23]} 31. Qa6 {[%clk 0:00:21]}  Ra8 {[%clk 0:01:19]} 32. Rb7 {[%clk 0:00:20]}  Rd7 {[%clk 0:01:20]} 33. Bxc5 {[%clk 0:00:20]}  Rxb7 {[%clk 0:01:17]} 34. Bxe7 {[%clk 0:00:20]}  Rbxa7 {[%clk 0:01:13]} 35. Qc6 {[%clk 0:00:13]}  Bxe7 {[%clk 0:01:14]} 36. Bf1 {[%clk 0:00:13]}  Rxa2 {[%clk 0:01:05]} 37. Bc4 {[%clk 0:00:14]}  Ra1+ {[%clk 0:01:06]} 38. Kg2 {[%clk 0:00:14]}  Rf8 {[%clk 0:01:07]} 39. Qd7 {[%clk 0:00:14]}  Bf6 {[%clk 0:01:06]} 40. h4 {[%clk 0:00:12]}  h5 {[%clk 0:01:03]} 41. Bd5 {[%clk 0:00:13]}  Rb1 {[%clk 0:01:00]} 42. Qc6 {[%clk 0:00:11]}  Kg7 {[%clk 0:01:00]} 43. Qd6 {[%clk 0:00:08]}  Rbb8 {[%clk 0:00:58]} 44. Qc7 {[%clk 0:00:09]}  Rbc8 {[%clk 0:00:57]} 45. Qa7 {[%clk 0:00:09]}  Rce8 {[%clk 0:00:56]} 46. f4 {[%clk 0:00:06]}  Re7 {[%clk 0:00:56]} 47. Kh3 {[%clk 0:00:02]}  Rxa7 {[%clk 0:00:55]} 0-1


[Site "https://www.chess.com"]

[Event "Titled Tuesday Blitz July 18 Late 2023"]
[White "Perez Ponsa, Federico"]
[Black "Reprintsev, Alexander"]
[WhiteFideId "117927"]
[BlackFideId "14100541"]
[WhiteElo "2825"]
[BlackElo "2445"]
[Result "1-0"]
[Round "1"]
[TimeControl "180+2"]
[Date "2023.07.18"]
[WhiteClock "0:01:28"]
[BlackClock "0:01:05"]
[Board "44"]

1. e4 {[%clk 0:02:38]}  d5 {[%clk 0:02:58]} 2. exd5 {[%clk 0:02:37]}  Qxd5 {[%clk 0:02:57]} 3. Nc3 {[%clk 0:02:38]}  Qd6 {[%clk 0:02:55]} 4. d4 {[%clk 0:02:35]}  c6 {[%clk 0:02:54]} 5. Ne4 {[%clk 0:02:32]}  Qc7 {[%clk 0:02:51]} 6. Nf3 {[%clk 0:02:26]}  Bf5 {[%clk 0:02:46]} 7. Ng3 {[%clk 0:02:23]}  Bg6 {[%clk 0:02:27]} 8. h4 {[%clk 0:02:21]}  h6 {[%clk 0:02:21]} 9. Ne5 {[%clk 0:01:44]}  Bh7 {[%clk 0:02:13]} 10. Bf4 {[%clk 0:01:44]}  Qb6 {[%clk 0:02:06]} 11. Bc4 {[%clk 0:01:39]}  e6 {[%clk 0:02:06]} 12. Qh5 {[%clk 0:01:39]}  g6 {[%clk 0:02:00]} 13. Qe2 {[%clk 0:01:38]}  h5 {[%clk 0:01:53]} 14. Nxf7 {[%clk 0:01:36]}  Qb4+ {[%clk 0:01:32]} 15. c3 {[%clk 0:01:32]}  Qxc4 {[%clk 0:01:32]} 16. Qxc4 {[%clk 0:01:31]}  Kxf7 {[%clk 0:01:32]} 17. Ne4 {[%clk 0:01:31]}  Be7 {[%clk 0:01:28]} 18. Be5 {[%clk 0:01:30]}  b5 {[%clk 0:01:16]} 19. Qb3 {[%clk 0:01:29]}  Bf6 {[%clk 0:01:05]} 20. Ng5+ {[%clk 0:01:28]} 1-0


[Site "https://www.chess.com"]

[Event "Titled Tuesday Blitz July 18 Late 2023"]
[White "Elsa167"]
[Black "Kovacsy, Barnabas"]
[BlackFideId "769290"]
[WhiteElo "2785"]
[BlackElo "2435"]
[Result "1-0"]
[Round "1"]
[TimeControl "180+2"]
[Date "2023.07.18"]
[WhiteClock "0:02:38"]
[BlackClock "0:01:50"]
[Board "50"]

1. d4 {[%clk 0:03:00]}  Nf6 {[%clk 0:02:59]} 2. c4 {[%clk 0:03:01]}  g6 {[%clk 0:02:59]} 3. Nc3 {[%clk 0:03:01]}  d5 {[%clk 0:02:59]} 4. Nf3 {[%clk 0:03:00]}  Bg7 {[%clk 0:03:00]} 5. Bg5 {[%clk 0:03:01]}  dxc4 {[%clk 0:02:59]} 6. e4 {[%clk 0:03:00]}  c5 {[%clk 0:02:59]} 7. d5 {[%clk 0:03:00]}  b5 {[%clk 0:03:00]} 8. d6 {[%clk 0:03:00]}  O-O {[%clk 0:02:43]} 9. e5 {[%clk 0:02:55]}  b4 {[%clk 0:02:37]} 10. dxe7 {[%clk 0:02:49]}  Qxe7 {[%clk 0:01:50]} 11. Bxf6 {[%clk 0:02:38]} 1-0


[Site "https://www.chess.com"]

[Event "Titled Tuesday Blitz July 18 Late 2023"]
[White "Turayev, Shahruh"]
[Black "Pein, Jonathan"]
[WhiteFideId "14003856"]
[BlackFideId "417092"]
[WhiteElo "2783"]
[BlackElo "2433"]
[Result "0-1"]
[Round "1"]
[TimeControl "180+2"]
[Date "2023.07.18"]
[WhiteClock "0:00:00"]
[BlackClock "0:00:10"]
[Board "52"]

1. d4 {[%clk 0:02:59]}  Nf6 {[%clk 0:02:55]} 2. c4 {[%clk 0:02:59]}  d6 {[%clk 0:02:50]} 3. Nf3 {[%clk 0:02:59]}  g6 {[%clk 0:02:51]} 4. Nc3 {[%clk 0:02:59]}  Bg7 {[%clk 0:02:52]} 5. e4 {[%clk 0:02:59]}  O-O {[%clk 0:02:52]} 6. Be2 {[%clk 0:02:59]}  e5 {[%clk 0:02:51]} 7. d5 {[%clk 0:03:00]}  h6 {[%clk 0:02:47]} 8. Be3 {[%clk 0:02:35]}  Ng4 {[%clk 0:02:47]} 9. Bd2 {[%clk 0:02:35]}  f5 {[%clk 0:02:47]} 10. h3 {[%clk 0:02:05]}  Nf6 {[%clk 0:02:46]} 11. Qc1 {[%clk 0:02:05]}  fxe4 {[%clk 0:02:32]} 12. Nh2 {[%clk 0:02:05]}  Kh7 {[%clk 0:02:18]} 13. Ng4 {[%clk 0:02:05]}  h5 {[%clk 0:02:01]} 14. Nxf6+ {[%clk 0:02:03]}  Qxf6 {[%clk 0:02:02]} 15. Nxe4 {[%clk 0:02:02]}  Qd8 {[%clk 0:02:00]} 16. g4 {[%clk 0:01:54]}  Kg8 {[%clk 0:02:00]} 17. Bh6 {[%clk 0:01:43]}  Na6 {[%clk 0:01:54]} 18. Rg1 {[%clk 0:01:35]}  Qh4 {[%clk 0:01:51]} 19. Bxg7 {[%clk 0:01:15]}  Kxg7 {[%clk 0:01:50]} 20. Qe3 {[%clk 0:01:15]}  hxg4 {[%clk 0:01:35]} 21. hxg4 {[%clk 0:01:15]}  Qh6 {[%clk 0:01:06]} 22. Ng5 {[%clk 0:01:04]}  Rf4 {[%clk 0:01:06]} 23. Ne4 {[%clk 0:00:58]}  Nb4 {[%clk 0:00:56]} 24. Kd1 {[%clk 0:00:10]}  Bd7 {[%clk 0:00:48]} 25. a3 {[%clk 0:00:11]}  Ba4+ {[%clk 0:00:41]} 26. b3 {[%clk 0:00:11]}  Rxe4 {[%clk 0:00:41]} 27. Qxe4 {[%clk 0:00:08]}  Bxb3+ {[%clk 0:00:41]} 28. Ke1 {[%clk 0:00:07]}  Nc2+ {[%clk 0:00:39]} 29. Kf1 {[%clk 0:00:08]}  Nxa1 {[%clk 0:00:27]} 30. Rh1 {[%clk 0:00:08]}  Qf4 {[%clk 0:00:22]} 31. Qd3 {[%clk 0:00:07]}  Rf8 {[%clk 0:00:19]} 32. f3 {[%clk 0:00:03]}  Ba4 {[%clk 0:00:16]} 33. Kg2 {[%clk 0:00:03]}  Nb3 {[%clk 0:00:16]} 34. Bd1 {[%clk 0:00:00]}  Nc5 {[%clk 0:00:10]} 0-1


[Site "https://www.chess.com"]